fUST/lending_fUST_20250411
["ID","MTS","AMOUNT","RATE_DAILY","PERIOD"]
[357673846,1744306244685,-500.0,0.00016438,2]
[357673847,1744306244695,-500.0,0.00016438,2]
[357673848,1744306244707,-560.07,0.00016438,2]
[357673849,1744306244716,-501.94984579,0.00016438,2]
[357673850,1744306244725,-500.0,0.00016438,2]
[357673851,1744306244735,-2563.93,0.00016438,2]
[357673852,1744306244744,-500.0,0.00016438,2]
[357673853,1744306244754,-500.0,0.00016438,2]
[357673854,1744306244763,-500.0,0.00016438,2]
[357673855,1744306244773,-500.0,0.00016438,2]
[357673856,1744306244783,-500.0,0.00016438,2]
[357673857,1744306244792,-500.0,0.00016438,2]
[357673858,1744306244802,-500.0,0.00016438,2]
[357673859,1744306244811,-500.0,0.00016438,2]
[357673860,1744306244820,-245.91447272,0.00016438,2]
[357673861,1744306244830,-500.0,0.00016438,2]
[357673862,1744306244839,-500.0,0.00016438,2]
[357673863,1744306244848,-579.83,0.00016438,2]
[357673864,1744306244857,-2929.63,0.00016438,2]
[357673865,1744306244867,-500.0,0.00016438,2]
[357673866,1744306244877,-500.0,0.00016438,2]
[357673867,1744306244886,-500.0,0.00016438,2]
[357673868,1744306245015,-1135.13,0.00016438,2]
[357673869,1744306245026,-500.0,0.00016438,2]
[357673870,1744306245036,-500.0,0.00016438,2]
[357673871,1744306245047,-500.0,0.00016438,2]
[357673872,1744306245057,-500.0,0.00016438,2]
[357673873,1744306245067,-500.0,0.00016438,2]
[357673874,1744306245077,-500.0,0.00016438,2]
[357673875,1744306245087,-300.0,0.00016438,2]
[357673876,1744306245098,-500.0,0.00016438,2]
[357673877,1744306245107,-500.0,0.00016438,2]
[357673878,1744306245117,-786.04,0.00016438,2]
[357673879,1744306245126,-671.11,0.00016438,2]
[357673880,1744306245135,-500.0,0.00016438,2]
[357673881,1744306245146,-500.0,0.00016438,2]
[357673882,1744306245155,-500.0,0.00016438,2]
[357673883,1744306245164,-1192.16,0.00016438,2]
[357673884,1744306245173,-500.0,0.00016438,2]
[357673885,1744306245184,-500.0,0.00016438,2]
[357673886,1744306245193,-500.0,0.00016438,2]
[357673887,1744306245203,-500.0,0.00016438,2]
[357673888,1744306245216,-500.0,0.00016438,2]
[357673889,1744306245225,-500.0,0.00016438,2]
[357673890,1744306245237,-500.0,0.00016438,2]
[357673891,1744306245246,-500.0,0.00016438,2]
[357673892,1744306245255,-630.09,0.00016438,2]
[357673893,1744306245265,-177.11363587,0.00016438,2]
[357673906,1744306246490,-322.88636413,0.00016438,2]
[357673907,1744306246500,-500.0,0.00016438,2]
[357673908,1744306246510,-500.0,0.00016438,2]
[357673909,1744306246519,-500.0,0.00016438,2]
[357673910,1744306246528,-500.0,0.00016438,2]
[357673911,1744306246537,-500.0,0.00016438,2]
[357673912,1744306246547,-500.0,0.00016438,2]
[357673913,1744306246556,-632.70743587,0.00016438,2]
[357673914,1744306246578,-642.59256413,0.00016438,2]
[357673915,1744306246587,-500.0,0.00016438,2]
[357673916,1744306246597,-500.0,0.00016438,2]
[357673917,1744306246607,-500.0,0.00016438,2]
[357673918,1744306246616,-500.0,0.00016438,2]
[357673919,1744306246625,-1211.76,0.00016438,2]
[357673920,1744306246635,-500.0,0.00016438,2]
[357673921,1744306246644,-2003.37,0.00016438,2]
[357673922,1744306246653,-152.362503,0.00016438,2]
[357673923,1744306246662,-864.12,0.00016438,2]
[357673924,1744306246671,-500.0,0.00016438,2]
[357673925,1744306246680,-1698.2,0.00016438,2]
[357673926,1744306246690,-500.0,0.00016438,2]
[357673927,1744306246699,-500.0,0.00016438,2]
[357673928,1744306246709,-500.0,0.00016438,2]
[357673929,1744306246718,-500.0,0.00016438,2]
[357673930,1744306246728,-1264.58,0.00016438,2]
[357673931,1744306246737,-500.0,0.00016438,2]
[357673932,1744306246747,-1055.18,0.00016438,2]
[357673933,1744306246757,-500.0,0.00016438,2]
[357673934,1744306246766,-500.0,0.00016438,2]
[357673935,1744306246775,-1327.5,0.00016438,2]
[357673936,1744306246785,-500.0,0.00016438,2]
[357673937,1744306246794,-500.0,0.00016438,2]
[357673938,1744306246804,-500.0,0.00016438,2]
[357673939,1744306246814,-500.0,0.00016438,2]
[357673940,1744306246823,-500.0,0.00016438,2]
[357673941,1744306246832,-945.94,0.00016438,2]
[357673943,1744306246842,-500.0,0.00016438,2]
[357673945,1744306246852,-500.0,0.00016438,2]
[357673957,1744306247008,-500.0,0.00016438,2]
[357673958,1744306247018,-850.73,0.00016438,2]
[357673959,1744306247027,-500.0,0.00016438,2]
[357673960,1744306247037,-500.0,0.00016438,2]
[357673961,1744306247046,-500.0,0.00016438,2]
[357673962,1744306247055,-380.81364143,0.00016438,2]
[357673963,1744306337909,250.0,0.00014995,2]
[357673964,1744306467346,8547.3221972,0.00014609,2]
[357673965,1744306577041,184.19,0.00010959,2]
[357673966,1744306587737,153.49,0.00010959,2]
[357673967,1744306598287,767.48,0.00010959,2]
[357674002,1744307244116,2944.87039148,0.00015001,2]
[357674041,1744307432763,-843.493232,0.00015369,2]
[357674042,1744307432773,-245.9118744,0.00015944,2]
[357674043,1744307432784,-250.0,0.00016164,2]
[357674044,1744307432794,-300.0,0.00016273,2]
[357674045,1744307432804,-14410.91329618,0.00016274,2]
[357674046,1744307432813,-1401.42121147,0.00016278,2]
[357674047,1744307432823,-237.0,0.00016337,2]
[357674048,1744307432833,-8879.19916105,0.00016338,2]
[357674057,1744307438818,-500.0,0.00016273,2]
[357674058,1744307438829,-241.70100641,0.00016273,2]
[357674059,1744307438839,-456.19472762,0.00016338,2]
[357674060,1744307438851,-8024.48281975,0.00016338,2]
[357674061,1744307438873,-241623.11972937,0.00016338,2]
[357674062,1744307438885,-20722.33710533,0.00016338,2]
[357674063,1744307438895,-160.0,0.00016339,2]
[357674064,1744307438904,-549.28265983,0.00016339,2]
[357674069,1744307440872,-288.5203356,0.00016339,2]
[357674070,1744307440883,-45.66261224,0.00016339,2]
[357674077,1744307441863,-114.33738776,0.00016339,2]
[357674078,1744307441872,-160.0,0.00016339,2]
[357674079,1744307441882,-66.02761224,0.00016339,2]
[357674080,1744307441893,-353.6188015,0.00016339,2]
[357674081,1744307441903,-887.4554022,0.000164,2]
[357674097,1744307443626,-19256.23503934,0.000164,2]
[357674099,1744307443682,-3097.49491422,0.000164,2]
[357674126,1744307446888,-250.0,0.00015269,2]
[357674127,1744307446900,-77547.2384092,0.000164,2]
[357674128,1744307446911,-152.0,0.00016402,2]
[357674129,1744307446923,-160.0,0.00016412,2]
[357674130,1744307446935,-12536.72526453,0.00016412,2]
[357674131,1744307446951,-1080.26976824,0.00016428,2]
[357674132,1744307446963,-151.0,0.00016428,2]
[357674133,1744307446976,-500.0,0.00016438,2]
[357674134,1744307446988,-500.0,0.00016438,2]
[357674135,1744307447004,-500.0,0.00016438,2]
[357674136,1744307447017,-500.0,0.00016438,2]
[357674137,1744307447029,-363.36930383,0.00016438,2]
[357674138,1744307447040,-500.0,0.00016438,2]
[357674139,1744307447052,-500.0,0.00016438,2]
[357674140,1744307447065,-873.72,0.00016438,2]
[357674141,1744307447295,-500.0,0.00016438,2]
[357674142,1744307447308,-500.0,0.00016438,2]
[357674143,1744307447320,-500.0,0.00016438,2]
[357674144,1744307447332,-500.0,0.00016438,2]
[357674145,1744307447344,-500.0,0.00016438,2]
[357674146,1744307447356,-500.0,0.00016438,2]
[357674147,1744307447368,-563.81,0.00016438,2]
[357674148,1744307447379,-607.91,0.00016438,2]
[357674149,1744307447392,-753.47,0.00016438,2]
[357674150,1744307447403,-895.62,0.00016438,2]
[357674151,1744307447415,-500.0,0.00016438,2]
[357674152,1744307447427,-500.0,0.00016438,2]
[357674153,1744307447439,-500.0,0.00016438,2]
[357674154,1744307447463,-500.0,0.00016438,2]
[357674155,1744307447473,-588.27,0.00016438,2]
[357674156,1744307447487,-618.64,0.00016438,2]
[357674157,1744307447499,-500.0,0.00016438,2]
[357674158,1744307447513,-573.32910311,0.00016438,2]
[357674159,1744307447525,-500.0,0.00016438,2]
[357674160,1744307447536,-500.0,0.00016438,2]
[357674161,1744307447547,-500.0,0.00016438,2]
[357674162,1744307447558,-500.0,0.00016438,2]
[357674163,1744307447568,-500.0,0.00016438,2]
[357674164,1744307447579,-500.0,0.00016438,2]
[357674165,1744307447592,-500.0,0.00016438,2]
[357674166,1744307447603,-500.0,0.00016438,2]
[357674167,1744307447617,-511.54,0.00016438,2]
[357674168,1744307447628,-700.13,0.00016438,2]
[357674169,1744307447639,-500.0,0.00016438,2]
[357674170,1744307447651,-1486.95,0.00016438,2]
[357674171,1744307447662,-886.86,0.00016438,2]
[357674172,1744307447674,-500.0,0.00016438,2]
[357674173,1744307447685,-500.0,0.00016438,2]
[357674174,1744307447701,-500.0,0.00016438,2]
[357674175,1744307447711,-500.0,0.00016438,2]
[357674176,1744307447722,-500.0,0.00016438,2]
[357674177,1744307447733,-563.67,0.00016438,2]
[357674178,1744307447744,-500.0,0.00016438,2]
[357674179,1744307447755,-500.0,0.00016438,2]
[357674180,1744307447765,-500.0,0.00016438,2]
[357674181,1744307447776,-500.0,0.00016438,2]
[357674182,1744307447787,-500.0,0.00016438,2]
[357674183,1744307447798,-282.21344497,0.00016438,2]
[357674184,1744307447808,-500.0,0.00016438,2]
[357674185,1744307447818,-500.0,0.00016438,2]
[357674186,1744307447829,-500.0,0.00016438,2]
[357674187,1744307447840,-500.0,0.00016438,2]
[357674188,1744307447850,-500.0,0.00016438,2]
[357674189,1744307447859,-500.0,0.00016438,2]
[357674190,1744307447869,-500.0,0.00016438,2]
[357674191,1744307447879,-552.70482168,0.00016438,2]
[357674192,1744307447889,-547.13,0.00016438,2]
[357674193,1744307447900,-575.3,0.00016438,2]
[357674194,1744307447909,-323.80213557,0.00016438,2]
[357674195,1744307447919,-500.0,0.00016438,2]
[357674196,1744307447929,-500.0,0.00016438,2]
[357674197,1744307447939,-500.0,0.00016438,2]
[357674198,1744307447953,-500.0,0.00016438,2]
[357674199,1744307447962,-500.0,0.00016438,2]
[357674200,1744307447972,-500.0,0.00016438,2]
[357674201,1744307447982,-500.0,0.00016438,2]
[357674202,1744307447993,-500.0,0.00016438,2]
[357674203,1744307448002,-500.0,0.00016438,2]
[357674204,1744307448012,-1142.49,0.00016438,2]
[357674205,1744307448022,-500.0,0.00016438,2]
[357674206,1744307448032,-500.0,0.00016438,2]
[357674207,1744307448043,-500.0,0.00016438,2]
[357674208,1744307448053,-500.0,0.00016438,2]
[357674209,1744307448064,-500.0,0.00016438,2]
[357674210,1744307448074,-2471.55,0.00016438,2]
[357674211,1744307448085,-629.97129339,0.00016438,2]
[357674212,1744307448096,-500.0,0.00016438,2]
[357674213,1744307448107,-500.0,0.00016438,2]
[357674214,1744307448117,-500.0,0.00016438,2]
[357674215,1744307448127,-500.0,0.00016438,2]
[357674216,1744307448137,-300.0,0.00016438,2]
[357674217,1744307448147,-500.0,0.00016438,2]
[357674218,1744307448158,-643.15,0.00016438,2]
[357674219,1744307448169,-500.0,0.00016438,2]
[357674220,1744307448179,-588.7083949,0.00016438,2]
[357674221,1744307448189,-500.0,0.00016438,2]
[357674222,1744307448203,-500.0,0.00016438,2]
[357674223,1744307448213,-500.0,0.00016438,2]
[357674224,1744307448224,-500.0,0.00016438,2]
[357674225,1744307448234,-500.0,0.00016438,2]
[357674226,1744307448245,-1162.73,0.00016438,2]
[357674227,1744307448255,-284.9384185,0.00016438,2]
[357674228,1744307448266,-500.0,0.00016438,2]
[357674229,1744307448276,-500.0,0.00016438,2]
[357674230,1744307448287,-971.0,0.00016438,2]
[357674231,1744307448298,-500.0,0.00016438,2]
[357674232,1744307448309,-535.35,0.00016438,2]
[357674233,1744307448320,-549.27,0.00016438,2]
[357674234,1744307448330,-500.0,0.00016438,2]
[357674235,1744307448340,-500.0,0.00016438,2]
[357674236,1744307448351,-500.0,0.00016438,2]
[357674237,1744307448362,-1938.49,0.00016438,2]
[357674238,1744307448372,-500.0,0.00016438,2]
[357674239,1744307448383,-661.76,0.00016438,2]
[357674240,1744307448393,-500.0,0.00016438,2]
[357674241,1744307448403,-500.0,0.00016438,2]
[357674242,1744307448413,-500.0,0.00016438,2]
[357674243,1744307448423,-500.0,0.00016438,2]
[357674244,1744307448433,-500.0,0.00016438,2]
[357674245,1744307448443,-1222.16,0.00016438,2]
[357674247,1744307448454,-500.0,0.00016438,2]
[357674248,1744307448464,-500.0,0.00016438,2]
[357674249,1744307448474,-551.23,0.00016438,2]
[357674250,1744307448484,-500.0,0.00016438,2]
[357674251,1744307448495,-500.0,0.00016438,2]
[357674252,1744307448505,-600.95,0.00016438,2]
[357674253,1744307448515,-832.57,0.00016438,2]
[357674254,1744307448525,-500.0,0.00016438,2]
[357674255,1744307448535,-586.95,0.00016438,2]
[357674256,1744307448547,-500.0,0.00016438,2]
[357674257,1744307448557,-500.0,0.00016438,2]
[357674258,1744307448567,-500.0,0.00016438,2]
[357674259,1744307448577,-631.78,0.00016438,2]
[357674260,1744307448589,-500.0,0.00016438,2]
[357674261,1744307448604,-1156.88,0.00016438,2]
[357674262,1744307448614,-3233.18,0.00016438,2]
[357674263,1744307448624,-500.0,0.00016438,2]
[357674264,1744307448635,-500.0,0.00016438,2]
[357674265,1744307448645,-500.0,0.00016438,2]
[357674266,1744307448655,-500.0,0.00016438,2]
[357674267,1744307448665,-500.0,0.00016438,2]
[357674268,1744307448675,-243.72109139,0.00016438,2]
[357674269,1744307448685,-3267.38,0.00016438,2]
[357674270,1744307448698,-500.0,0.00016438,2]
[357674271,1744307448708,-715.25,0.00016438,2]
[357674272,1744307448719,-500.0,0.00016438,2]
[357674273,1744307448729,-500.0,0.00016438,2]
[357674274,1744307448739,-500.0,0.00016438,2]
[357674275,1744307448751,-500.0,0.00016438,2]
[357674276,1744307448762,-3507.28,0.00016438,2]
[357674277,1744307448772,-1384.3,0.00016438,2]
[357674278,1744307448782,-500.0,0.00016438,2]
[357674279,1744307448793,-637.24,0.00016438,2]
[357674280,1744307448959,-500.0,0.00016438,2]
[357674281,1744307448971,-500.0,0.00016438,2]
[357674282,1744307448982,-723.83,0.00016438,2]
[357674283,1744307448992,-527.61099156,0.00016438,2]
[357674284,1744307449002,-500.0,0.00016438,2]
[357674285,1744307449012,-500.0,0.00016438,2]
[357674286,1744307449023,-6768.88,0.00016438,2]
[357674287,1744307449033,-213.94292608,0.00016438,2]
[357674288,1744307449044,-500.0,0.00016438,2]
[357674289,1744307449055,-500.0,0.00016438,2]
[357674290,1744307449065,-500.0,0.00016438,2]
[357674291,1744307449074,-500.0,0.00016438,2]
[357674292,1744307449084,-500.0,0.00016438,2]
[357674293,1744307449094,-500.0,0.00016438,2]
[357674294,1744307449104,-856.2,0.00016438,2]
[357674295,1744307449114,-500.0,0.00016438,2]
[357674296,1744307449124,-500.0,0.00016438,2]
[357674297,1744307449133,-1087.08,0.00016438,2]
[357674298,1744307449143,-500.0,0.00016438,2]
[357674299,1744307449153,-500.0,0.00016438,2]
[357674300,1744307449163,-500.0,0.00016438,2]
[357674301,1744307449174,-1117.17,0.00016438,2]
[357674302,1744307449184,-500.0,0.00016438,2]
[357674303,1744307449194,-500.0,0.00016438,2]
[357674304,1744307449207,-500.0,0.00016438,2]
[357674305,1744307449217,-500.0,0.00016438,2]
[357674306,1744307449227,-500.0,0.00016438,2]
[357674307,1744307449237,-500.0,0.00016438,2]
[357674308,1744307449248,-959.99,0.00016438,2]
[357674309,1744307449258,-1420.78,0.00016438,2]
[357674310,1744307449269,-500.0,0.00016438,2]
[357674311,1744307449279,-500.0,0.00016438,2]
[357674312,1744307449290,-500.0,0.00016438,2]
[357674313,1744307449300,-809.63,0.00016438,2]
[357674314,1744307449310,-500.0,0.00016438,2]
[357674315,1744307449320,-500.0,0.00016438,2]
[357674316,1744307449331,-500.0,0.00016438,2]
[357674317,1744307449341,-500.0,0.00016438,2]
[357674318,1744307449351,-1120.17,0.00016438,2]
[357674319,1744307449361,-500.0,0.00016438,2]
[357674320,1744307449370,-803.15,0.00016438,2]
[357674321,1744307449380,-500.0,0.00016438,2]
[357674322,1744307449390,-500.0,0.00016438,2]
[357674323,1744307449400,-2457.1,0.00016438,2]
[357674324,1744307449410,-500.0,0.00016438,2]
[357674325,1744307449420,-500.0,0.00016438,2]
[357674326,1744307449430,-734.41,0.00016438,2]
[357674327,1744307449440,-500.0,0.00016438,2]
[357674328,1744307449451,-500.0,0.00016438,2]
[357674329,1744307449462,-705.54,0.00016438,2]
[357674330,1744307449473,-500.0,0.00016438,2]
[357674331,1744307449483,-2807.56,0.00016438,2]
[357674332,1744307449493,-500.0,0.00016438,2]
[357674333,1744307449503,-259.44698693,0.00016438,2]
[357674334,1744307449513,-500.0,0.00016438,2]
[357674335,1744307449524,-576.5,0.00016438,2]
[357674336,1744307449534,-500.0,0.00016438,2]
[357674337,1744307449544,-500.0,0.00016438,2]
[357674338,1744307449555,-511.52111629,0.00016438,2]
[357674339,1744307449564,-495.62317885,0.00016438,2]
[357674340,1744307449575,-500.0,0.00016438,2]
[357674341,1744307449585,-500.0,0.00016438,2]
[357674342,1744307449596,-621.09,0.00016438,2]
[357674343,1744307449606,-500.0,0.00016438,2]
[357674344,1744307449619,-500.0,0.00016438,2]
[357674345,1744307449630,-500.0,0.00016438,2]
[357674346,1744307449640,-500.0,0.00016438,2]
[357674347,1744307449650,-806.94,0.00016438,2]
[357674348,1744307449660,-500.0,0.00016438,2]
[357674349,1744307449670,-500.0,0.00016438,2]
[357674350,1744307449683,-500.0,0.00016438,2]
[357674351,1744307449693,-500.0,0.00016438,2]
[357674352,1744307449704,-500.0,0.00016438,2]
[357674353,1744307449714,-446.38557423,0.00016438,2]
[357674354,1744307449724,-500.0,0.00016438,2]
[357674355,1744307449735,-500.0,0.00016438,2]
[357674356,1744307449744,-528.34,0.00016438,2]
[357674357,1744307449754,-501.43105469,0.00016438,2]
[357674358,1744307449764,-500.0,0.00016438,2]
[357674359,1744307449774,-500.0,0.00016438,2]
[357674360,1744307449784,-500.0,0.00016438,2]
[357674361,1744307449793,-913.95,0.00016438,2]
[357674362,1744307449802,-500.0,0.00016438,2]
[357674363,1744307449812,-500.0,0.00016438,2]
[357674364,1744307449821,-500.0,0.00016438,2]
[357674365,1744307449831,-500.0,0.00016438,2]
[357674366,1744307449840,-500.0,0.00016438,2]
[357674367,1744307449849,-523.08781658,0.00016438,2]
[357674368,1744307449859,-500.0,0.00016438,2]
[357674369,1744307449869,-500.0,0.00016438,2]
[357674370,1744307449878,-500.0,0.00016438,2]
[357674371,1744307449887,-1276.42,0.00016438,2]
[357674372,1744307449896,-170.65066331,0.00016438,2]
[357674373,1744307449905,-500.0,0.00016438,2]
[357674374,1744307449915,-500.0,0.00016438,2]
[357674375,1744307449925,-500.0,0.00016438,2]
[357674376,1744307449934,-1295.21,0.00016438,2]
[357674377,1744307449944,-500.0,0.00016438,2]
[357674378,1744307449955,-1109.82,0.00016438,2]
[357674379,1744307449964,-1710.43,0.00016438,2]
[357674380,1744307449974,-500.0,0.00016438,2]
[357674381,1744307449983,-500.0,0.00016438,2]
[357674382,1744307449993,-568.39481791,0.00016438,2]
[357674383,1744307450003,-1353.86,0.00016438,2]
[357674384,1744307450012,-858.62,0.00016438,2]
[357674385,1744307450022,-500.0,0.00016438,2]
[357674386,1744307450032,-500.0,0.00016438,2]
[357674387,1744307450042,-606.79,0.00016438,2]
[357674388,1744307450052,-1087.83,0.00016438,2]
[357674389,1744307450062,-500.0,0.00016438,2]
[357674390,1744307450071,-502.65,0.00016438,2]
[357674391,1744307450081,-500.0,0.00016438,2]
[357674392,1744307450091,-500.0,0.00016438,2]
[357674393,1744307450101,-500.0,0.00016438,2]
[357674394,1744307450111,-500.0,0.00016438,2]
[357674395,1744307450120,-500.0,0.00016438,2]
[357674396,1744307450130,-500.0,0.00016438,2]
[357674397,1744307450139,-500.0,0.00016438,2]
[357674398,1744307450149,-267.66179867,0.00016438,2]
[357674399,1744307450159,-635.11,0.00016438,2]
[357674400,1744307450169,-500.0,0.00016438,2]
[357674401,1744307450179,-975.88,0.00016438,2]
[357674402,1744307450189,-500.0,0.00016438,2]
[357674403,1744307450199,-1617.4,0.00016438,2]
[357674404,1744307450209,-1314.82,0.00016438,2]
[357674405,1744307450218,-500.0,0.00016438,2]
[357674406,1744307450228,-500.0,0.00016438,2]
[357674407,1744307450238,-500.0,0.00016438,2]
[357674408,1744307450247,-777.3,0.00016438,2]
[357674409,1744307450257,-500.0,0.00016438,2]
[357674410,1744307450266,-500.0,0.00016438,2]
[357674411,1744307450276,-878.73,0.00016438,2]
[357674412,1744307450285,-500.0,0.00016438,2]
[357674413,1744307450295,-834.79,0.00016438,2]
[357674414,1744307450304,-2022.71,0.00016438,2]
[357674415,1744307450313,-1230.08,0.00016438,2]
[357674416,1744307450323,-500.0,0.00016438,2]
[357674417,1744307450332,-500.0,0.00016438,2]
[357674418,1744307450342,-506.59,0.00016438,2]
[357674419,1744307450351,-500.0,0.00016438,2]
[357674420,1744307450360,-500.0,0.00016438,2]
[357674421,1744307450370,-500.0,0.00016438,2]
[357674422,1744307450379,-500.0,0.00016438,2]
[357674423,1744307450389,-3682.9,0.00016438,2]
[357674424,1744307450399,-500.0,0.00016438,2]
[357674425,1744307450408,-500.0,0.00016438,2]
[357674426,1744307450417,-500.0,0.00016438,2]
[357674427,1744307450426,-500.0,0.00016438,2]
[357674428,1744307450436,-500.0,0.00016438,2]
[357674429,1744307450448,-1439.32,0.00016438,2]
[357674430,1744307450457,-500.0,0.00016438,2]
[357674431,1744307450466,-500.0,0.00016438,2]
[357674432,1744307450476,-1279.91,0.00016438,2]
[357674433,1744307450485,-1939.743274,0.00016438,2]
[357674434,1744307450495,-1939.743274,0.00016438,2]
[357674435,1744307450505,-1939.743274,0.00016438,2]
[357674436,1744307450515,-1939.743274,0.00016438,2]
[357674437,1744307450525,-1939.743274,0.00016438,2]
[357674438,1744307450534,-1939.743274,0.00016438,2]
[357674439,1744307450544,-1939.743274,0.00016438,2]
[357674440,1744307450554,-1939.743274,0.00016438,2]
[357674441,1744307450564,-1939.743274,0.00016438,2]
[357674442,1744307450573,-500.0,0.00016438,2]
[357674443,1744307450583,-1939.743274,0.00016438,2]
[357674444,1744307450600,-1939.743274,0.00016438,2]
[357674445,1744307450612,-1939.743274,0.00016438,2]
[357674446,1744307450625,-1939.743274,0.00016438,2]
[357674447,1744307450635,-1939.743274,0.00016438,2]
[357674448,1744307450647,-500.0,0.00016438,2]
[357674449,1744307450657,-1939.743274,0.00016438,2]
[357674450,1744307450667,-1939.743274,0.00016438,2]
[357674451,1744307450677,-1939.743274,0.00016438,2]
[357674452,1744307450687,-1939.743274,0.00016438,2]
[357674453,1744307450701,-200.0,0.00016438,2]
[357674454,1744307450711,-1939.743274,0.00016438,2]
[357674455,1744307450721,-1939.74327318,0.00016438,2]
[357674456,1744307450731,-150.15,0.00016438,2]
[357674457,1744307450741,-500.0,0.00016438,2]
[357674458,1744307450751,-874.27,0.00016438,2]
[357674459,1744307450761,-1580.68,0.00016438,2]
[357674460,1744307450772,-200.0,0.00016438,2]
[357674461,1744307450782,-993.14,0.00016438,2]
[357674462,1744307450791,-984.01,0.00016438,2]
[357674463,1744307450801,-150.15,0.00016438,2]
[357674464,1744307450811,-200.0,0.00016438,2]
[357674465,1744307450820,-784.43,0.00016438,2]
[357674466,1744307450830,-151.0,0.00016438,2]
[357674467,1744307450840,-151.0,0.00016438,2]
[357674468,1744307450850,-151.0,0.00016438,2]
[357674469,1744307450860,-151.0,0.00016438,2]
[357674470,1744307450870,-500.63159483,0.00016438,2]
[357674471,1744307450880,-3501.51,0.00016438,2]
[357674472,1744307450889,-151.0,0.00016438,2]
[357674473,1744307450899,-151.0,0.00016438,2]
[357674474,1744307450909,-151.0,0.00016438,2]
[357674475,1744307450919,-151.0,0.00016438,2]
[357674476,1744307450928,-151.0,0.00016438,2]
[357674477,1744307450938,-500.0,0.00016438,2]
[357674478,1744307450950,-500.0,0.00016438,2]
[357674479,1744307450960,-500.0,0.00016438,2]
[357674480,1744307450970,-500.0,0.00016438,2]
[357674481,1744307450980,-500.0,0.00016438,2]
[357674482,1744307450990,-500.0,0.00016438,2]
[357674483,1744307451000,-500.0,0.00016438,2]
[357674484,1744307451010,-1728.4,0.00016438,2]
[357674485,1744307451020,-235.22656,0.00016438,2]
[357674486,1744307451030,-1187.45,0.00016438,2]
[357674487,1744307451040,-500.0,0.00016438,2]
[357674488,1744307451051,-500.0,0.00016438,2]
[357674489,1744307451062,-1107.29,0.00016438,2]
[357674490,1744307451071,-2754.97,0.00016438,2]
[357674491,1744307451081,-2378.4,0.00016438,2]
[357674492,1744307451091,-500.0,0.00016438,2]
[357674493,1744307451102,-500.0,0.00016438,2]
[357674494,1744307451112,-778.84,0.00016438,2]
[357674495,1744307451121,-1138.26,0.00016438,2]
[357674496,1744307451131,-500.0,0.00016438,2]
[357674497,1744307451140,-500.0,0.00016438,2]
[357674498,1744307451150,-500.0,0.00016438,2]
[357674499,1744307451305,-500.0,0.00016438,2]
[357674500,1744307451315,-500.0,0.00016438,2]
[357674501,1744307451324,-537.14,0.00016438,2]
[357674502,1744307451334,-500.0,0.00016438,2]
[357674503,1744307451343,-500.0,0.00016438,2]